bitfinex-derivatives/quotes_BTCF0:USTF0_20241214
["timestamp","ask_amount","ask_price","bid_price","bid_amount"]
[1734152018452,0.11035175,101700.0,101690.0,0.31582495]
[1734152018853,0.11035175,101700.0,101690.0,0.81582495]
[1734152019052,0.10985175,101700.0,101690.0,0.81582495]
[1734152019765,0.06068675,101700.0,101690.0,0.8645961]
[1734152020061,0.06118675,101700.0,101690.0,0.8645961]
[1734152020554,0.06118675,101700.0,101690.0,0.8953961]
[1734152020860,0.1099579,101700.0,101690.0,0.84662495]
[1734152021060,0.1094579,101700.0,101690.0,0.81582495]
[1734152021258,0.06068675,101700.0,101690.0,0.81582495]
[1734152022060,0.06118675,101700.0,101690.0,0.81582495]
[1734152023062,0.06068675,101700.0,101690.0,0.81582495]
[1734152024048,0.06118675,101700.0,101690.0,0.81582495]
[1734152025254,0.06068675,101700.0,101690.0,0.81582495]
[1734152025456,0.01152575,101700.0,101690.0,0.81582495]
[1734152025856,0.01152575,101700.0,101690.0,0.65463466]
[1734152026160,0.01202575,101700.0,101690.0,0.65463466]
[1734152026356,0.01202575,101700.0,101690.0,0.68693466]
[1734152027063,0.01152575,101700.0,101690.0,0.68693466]
[1734152027850,0.01152575,101700.0,101690.0,0.92239361]
[1734152028072,0.01202575,101700.0,101690.0,0.92239361]
[1734152028458,0.01202575,101700.0,101690.0,1.28319361]
[1734152029165,0.01152575,101700.0,101690.0,1.28319361]
[1734152030062,0.01202575,101700.0,101690.0,1.28319361]
[1734152030270,0.00197559,101700.0,101690.0,1.28319361]
[1734152031158,0.00197559,101700.0,101690.0,1.57762959]
[1734152031467,0.08535703,101720.0,101690.0,1.64217064]
[1734152031760,0.08535703,101720.0,101710.0,0.07426866]
[1734152031966,0.86103879,101730.0,101720.0,0.049152]
[1734152032172,0.86103879,101730.0,101720.0,0.549152]
[1734152032370,0.86103879,101730.0,101720.0,0.049152]
[1734152034060,0.87107007,101730.0,101720.0,0.049152]
[1734152034260,0.85768794,101730.0,101720.0,0.049152]
[1734152035866,0.94533873,101730.0,101720.0,0.049152]
[1734152037559,0.94533873,101730.0,101710.0,0.549155]
[1734152037560,0.049152,101720.0,101710.0,0.549155]
[1734152037760,0.145052,101720.0,101710.0,0.549155]
[1734152041082,0.145552,101720.0,101710.0,0.549155]
[1734152041268,0.19427446,101720.0,101710.0,0.549155]
[1734152041577,0.55507446,101720.0,101710.0,0.549155]
[1734152042173,0.55457446,101720.0,101710.0,0.549155]
[1734152043075,0.049652,101720.0,101710.0,0.59787746]
[1734152043379,0.0005,101720.0,101710.0,0.59787746]
[1734152043679,0.0005,101720.0,101710.0,0.69597746]
[1734152044076,0.91979353,101730.0,101710.0,0.69597746]
[1734152044467,0.3608,101720.0,101710.0,0.69597746]
[1734152045278,0.410452,101720.0,101710.0,0.69597746]
[1734152045478,0.410452,101720.0,101710.0,0.93090995]
[1734152045779,0.410452,101720.0,101710.0,0.93102022]
[1734152046287,0.410452,101720.0,101710.0,0.69597746]
[1734152046470,0.49810279,101720.0,101710.0,0.69597746]
[1734152046981,0.049652,101720.0,101710.0,1.35121344]
[1734152047285,0.45109079,101730.0,101720.0,0.049152]
[1734152047480,0.35953235,101740.0,101720.0,0.8018329]
[1734152047781,0.24283975,101740.0,101730.0,0.549147]
[1734152048074,0.72033235,101740.0,101730.0,0.59786946]
[1734152048374,0.60363975,101740.0,101730.0,0.59786946]
[1734152048784,0.54063975,101740.0,101730.0,0.59786946]
[1734152049079,0.50763975,101740.0,101730.0,0.59786946]
[1734152049282,0.50763975,101740.0,101730.0,0.549147]
[1734152054283,0.50813975,101740.0,101730.0,0.549147]
[1734152055184,0.50763975,101740.0,101730.0,0.549147]
[1734152055385,0.62433235,101740.0,101730.0,0.549147]
[1734152056080,0.62483235,101740.0,101730.0,0.549147]
[1734152057089,0.62433235,101740.0,101730.0,0.549147]
[1734152058084,0.62483235,101740.0,101730.0,0.549147]
[1734152058288,0.53718156,101740.0,101730.0,0.549147]
[1734152059191,0.53668156,101740.0,101730.0,0.549147]
[1734152060088,0.53718156,101740.0,101730.0,0.549147]
[1734152061294,0.53668156,101740.0,101730.0,0.549147]
[1734152063279,0.62451567,101740.0,101730.0,0.549147]
[1734152063490,0.26371567,101740.0,101730.0,0.580247]
[1734152063684,0.26371567,101740.0,101730.0,0.7164485]
[1734152065087,0.26371567,101740.0,101730.0,0.642247]
[1734152066294,0.26371567,101740.0,101730.0,0.580247]
[1734152068392,0.26371567,101740.0,101730.0,0.941047]
[1734152068598,0.26371567,101740.0,101730.0,0.580247]
[1734152069387,0.26371567,101740.0,101730.0,0.941047]
[1734152069597,0.26371567,101740.0,101730.0,0.580247]
[1734152071293,0.26371567,101740.0,101730.0,0.62894313]
[1734152071800,0.26371567,101740.0,101730.0,0.59784313]
[1734152073208,0.26371567,101740.0,101730.0,0.89227911]
[1734152074895,0.17588156,101740.0,101730.0,0.89227911]
[1734152076401,0.17588156,101740.0,101730.0,0.84358298]
[1734152076596,0.17588156,101740.0,101730.0,0.89227911]
[1734152077195,0.32174731,101740.0,101730.0,0.89227911]
[1734152080805,0.20505471,101740.0,101730.0,0.89227911]
[1734152081098,0.32247214,101740.0,101730.0,0.89227911]
[1734152083002,0.20505471,101740.0,101730.0,0.89227911]
[1734152083204,0.20505471,101740.0,101730.0,0.84358298]
[1734152083595,0.20505471,101740.0,101730.0,0.89227911]
[1734152085606,0.32247962,101740.0,101730.0,0.89227911]
[1734152085997,0.20505471,101740.0,101730.0,0.89227911]
[1734152087407,0.20505471,101740.0,101730.0,0.84358298]
[1734152097712,0.56585471,101740.0,101730.0,0.29443598]
[1734152097919,0.74102522,101740.0,101730.0,0.29443598]
[1734152098105,0.049147,101730.0,101720.0,1.24560629]
[1734152098304,0.16663891,101730.0,101720.0,1.24560629]
[1734152098504,0.16663891,101730.0,101720.0,0.89228311]
[1734152098709,0.16663891,101730.0,101720.0,1.24560629]
[1734152099215,0.16663891,101730.0,101720.0,0.89228311]
[1734152099710,0.16663891,101730.0,101720.0,0.95117031]
[1734152099711,0.25471699,101730.0,101720.0,0.95117031]
[1734152100109,0.25471699,101730.0,101720.0,1.19112912]
[1734152100713,0.25471699,101730.0,101720.0,1.23982525]
[1734152101610,0.25471699,101730.0,101720.0,0.95117031]
[1734152101809,0.25471699,101730.0,101720.0,0.99986644]
[1734152102014,0.25471699,101730.0,101720.0,0.95117031]
[1734152102509,0.25471699,101730.0,101720.0,1.24590696]
[1734152102704,0.25471699,101730.0,101720.0,1.29460309]
[1734152102910,0.20556999,101730.0,101720.0,1.36066644]
[1734152103209,0.20556999,101730.0,101720.0,1.24730207]
[1734152103210,0.08807808,101730.0,101720.0,1.24730207]
[1734152103415,0.26475995,101740.0,101730.0,0.049147]
[1734152103610,0.26475995,101740.0,101730.0,1.2032882]
[1734152104010,0.26475995,101740.0,101730.0,1.7032882]
[1734152105110,0.21561495,101740.0,101730.0,1.75198433]
[1734152105303,0.21561495,101740.0,101730.0,1.69571563]
[1734152105304,0.08807808,101740.0,101730.0,1.69571563]
[1734152105504,0.25520177,101750.0,101740.0,0.049142]
[1734152105705,0.25520177,101750.0,101740.0,0.79468697]
[1734152106109,0.25520177,101750.0,101740.0,1.29468697]
[1734152106311,0.25470177,101750.0,101740.0,1.29468697]
[1734152107213,0.25520177,101750.0,101740.0,1.29468697]
[1734152107410,0.13770986,101750.0,101740.0,1.29468697]
[1734152107609,0.13770986,101750.0,101740.0,1.19729471]
[1734152108117,0.13770986,101750.0,101740.0,1.29468697]
[1734152108512,0.13770986,101750.0,101740.0,0.94114913]
[1734152108713,0.14754889,101750.0,101740.0,0.94114913]
[1734152109017,0.14754889,101750.0,101740.0,1.24599084]
[1734152109213,0.14754889,101750.0,101740.0,0.892453]
[1734152109418,0.14754889,101750.0,101740.0,0.94114913]
[1734152109922,0.14754889,101750.0,101740.0,0.892453]
[1734152110217,0.14704889,101750.0,101740.0,0.892453]
[1734152111714,0.14704889,101750.0,101740.0,0.94114913]
[1734152112121,0.14704889,101750.0,101740.0,0.892453]
[1734152120532,0.14704889,101750.0,101740.0,0.94114913]
[1734152121521,0.14704889,101750.0,101740.0,1.30194913]
[1734152121722,0.05897703,101750.0,101740.0,1.30194913]
[1734152122529,0.14704889,101750.0,101740.0,1.30194913]
[1734152123028,0.05897703,101750.0,101740.0,1.30194913]
[1734152123228,0.14704889,101750.0,101740.0,1.31408279]
[1734152125922,0.14704889,101750.0,101740.0,0.95328279]
[1734152126129,0.14704889,101750.0,101740.0,1.31408279]
[1734152126831,0.05897703,101750.0,101740.0,1.31408279]
[1734152127426,0.14704889,101750.0,101740.0,1.31408279]
[1734152127630,0.08807186,101750.0,101740.0,1.31408279]
[1734152127829,0.32247391,101760.0,101750.0,0.049137]
[1734152128029,0.33253857,101760.0,101750.0,0.10389996]
[1734152128328,0.33203857,101760.0,101750.0,0.10389996]
[1734152128732,0.21701093,101760.0,101750.0,0.10389996]
[1734152128929,0.20694627,101760.0,101750.0,0.10389996]
[1734152129130,0.20694627,101760.0,101750.0,0.93021483]
[1734152129431,0.20744627,101760.0,101750.0,0.93021483]
[1734152130034,0.08995436,101760.0,101750.0,0.93021483]
[1734152130345,0.13858636,101760.0,101750.0,0.89851483]
[1734152130530,0.19958636,101760.0,101750.0,0.89851483]
[1734152131340,0.31707827,101760.0,101750.0,0.89851483]
[1734152132738,0.25607827,101760.0,101750.0,0.89851483]
[1734152132938,0.25607827,101760.0,101750.0,0.93061483]
[1734152133438,0.25607827,101760.0,101750.0,1.29141483]
[1734152133641,0.25607827,101760.0,101750.0,0.93061483]
[1734152133845,0.25607827,101760.0,101750.0,1.29141483]
[1734152134332,0.25607827,101760.0,101750.0,1.64495267]
[1734152134537,0.25460313,101760.0,101750.0,1.64495267]
[1734152134838,0.25460313,101760.0,101750.0,1.3503378]
[1734152136542,0.13711122,101760.0,101750.0,1.3503378]
[1734152137240,0.13711122,101760.0,101750.0,0.9895378]
[1734152137644,0.13711122,101760.0,101750.0,1.3503378]
[1734152137842,0.13711122,101760.0,101750.0,0.9895378]
[1734152138145,0.13711122,101760.0,101750.0,1.36035943]
[1734152139047,0.08797922,101760.0,101750.0,1.36035943]
[1734152139241,0.20547113,101760.0,101750.0,1.36035943]
[1734152139440,0.20547113,101760.0,101750.0,1.00682159]
[1734152139840,0.20547113,101760.0,101750.0,1.36035943]
[1734152140440,0.08797922,101760.0,101750.0,1.36035943]
[1734152141443,0.08797922,101760.0,101750.0,1.3503378]
[1734152142344,0.08797922,101760.0,101750.0,1.29557484]
[1734152142547,0.08797922,101760.0,101750.0,0.909937]
[1734152142747,0.13711122,101760.0,101750.0,0.96469996]
[1734152143449,0.13711122,101760.0,101750.0,1.3182378]
[1734152143648,0.13711122,101760.0,101750.0,0.96469996]
[1734152143854,0.13711122,101760.0,101750.0,1.61262593]
[1734152144252,0.13711122,101760.0,101750.0,1.55786297]
[1734152144456,0.13711122,101760.0,101750.0,1.61262593]
[1734152144946,0.13711122,101760.0,101750.0,1.25182593]
[1734152145149,0.13711122,101760.0,101750.0,1.61262593]
[1734152147558,0.25460313,101760.0,101750.0,1.61262593]
[1734152148155,0.13711122,101760.0,101750.0,1.61262593]
[1734152148356,0.25460313,101760.0,101750.0,1.61262593]
[1734152150663,0.20547113,101760.0,101750.0,1.66738889]
[1734152150966,0.08797922,101760.0,101750.0,1.40400076]
[1734152151151,0.08797922,101760.0,101750.0,1.46450076]
[1734152151366,0.08797922,101760.0,101750.0,1.69821643]
[1734152152457,0.20597113,101770.0,101750.0,1.69824448]
[1734152152655,0.20597113,101770.0,101760.0,0.51219576]
[1734152153350,0.20547113,101770.0,101760.0,1.01219576]
[1734152155461,0.20547113,101770.0,101760.0,0.65865792]
[1734152159068,0.25459813,101770.0,101760.0,0.65865792]
[1734152166565,0.25459813,101770.0,101760.0,1.01945792]
[1734152168076,0.25459813,101770.0,101760.0,0.96469496]
[1734152168275,0.25459813,101770.0,101760.0,1.01945792]
[1734152169468,0.67016109,101770.0,101760.0,0.5]
[1734152169675,0.049132,101760.0,101750.0,0.89832279]
[1734152169874,0.31598008,101760.0,101750.0,0.89832279]
[1734152171378,0.31598008,101760.0,101750.0,0.89832351]
[1734152174689,0.22797376,101760.0,101750.0,0.60389868]
[1734152176702,0.31594223,101760.0,101750.0,0.84355983]
[1734152176898,0.31594223,101760.0,101750.0,0.89832351]
[1734152176899,0.67674223,101760.0,101750.0,0.89832351]
[1734152177197,0.32583587,101760.0,101750.0,0.89832351]
[1734152177602,0.68663587,101760.0,101750.0,0.89832351]
[1734152177799,0.38473229,101760.0,101750.0,0.60389868]
[1734152178006,0.32583168,101760.0,101750.0,0.60389868]
[1734152178201,0.68663168,101760.0,101750.0,0.89832351]
[1734152178403,0.68663168,101760.0,101750.0,0.60389868]
[1734152181511,0.32583168,101760.0,101750.0,0.60389868]
[1734152181700,0.60729968,101760.0,101750.0,0.60389019]
[1734152181898,0.09785792,101760.0,101750.0,1.29001502]
[1734152182097,0.09785792,101760.0,101750.0,0.99559019]
[1734152185802,0.09785792,101760.0,101750.0,1.34912803]
[1734152186196,0.08796428,101760.0,101750.0,0.99559019]
[1734152186397,0.08796428,101760.0,101750.0,1.34912803]
[1734152186807,0.08796428,101760.0,101750.0,0.99559019]
[1734152187005,0.64895604,101770.0,101760.0,0.049132]
[1734152187204,0.64895604,101770.0,101760.0,0.10388719]
[1734152187405,0.64895604,101770.0,101760.0,0.10388271]
[1734152187607,0.64895604,101770.0,101760.0,0.60388271]
[1734152188114,0.64895604,101770.0,101760.0,0.65863342]
[1734152188115,0.60965207,101770.0,101760.0,0.65863342]
[1734152189206,0.65877907,101770.0,101760.0,0.65863342]
[1734152190313,0.65877907,101770.0,101760.0,0.60388271]
[1734152190813,0.65877907,101770.0,101760.0,1.01943342]
[1734152191115,0.65877907,101770.0,101760.0,0.65863342]
[1734152191797,0.65877907,101770.0,101760.0,1.01943342]
[1734152192210,0.65877907,101770.0,101760.0,0.65863342]
[1734152192621,0.62737907,101770.0,101760.0,0.65863342]
[1734152193109,0.26425907,101770.0,101760.0,0.65863342]
[1734152195413,0.26425907,101770.0,101760.0,0.60388271]
[1734152198411,0.62505907,101770.0,101760.0,0.60388271]
[1734152198601,0.26425907,101770.0,101760.0,0.60388271]
[1734152203212,0.26425907,101770.0,101760.0,0.5]
[1734152203506,0.73871039,101770.0,101760.0,0.5]
[1734152203710,0.68395968,101770.0,101760.0,0.5]
[1734152204613,0.73871039,101770.0,101760.0,0.5]
[1734152204914,0.56661792,101770.0,101760.0,0.5]
[1734152205819,0.62136863,101770.0,101760.0,0.5]
[1734152206418,0.26056863,101770.0,101760.0,0.5]
[1734152206619,0.62136863,101770.0,101760.0,0.5]
[1734152207514,0.56661792,101770.0,101760.0,0.5]
[1734152207822,0.62136863,101770.0,101760.0,0.5]
[1734152210224,0.79653914,101770.0,101760.0,0.5]
[1734152210726,0.62136863,101770.0,101760.0,0.5]
[1734152211120,0.79653914,101770.0,101760.0,0.5]
[1734152211919,0.049132,101760.0,101750.0,0.79455017]
[1734152212219,0.8238195,101760.0,101750.0,0.5]
[1734152212417,0.049137,101750.0,101740.0,1.48654111]
[1734152212625,0.13716898,101750.0,101740.0,1.48654111]
[1734152213123,0.13716898,101750.0,101740.0,1.25197972]
[1734152213321,0.13716898,101750.0,101740.0,1.25247972]
[1734152214424,0.13716898,101750.0,101740.0,1.25197972]
[1734152214813,0.13716898,101750.0,101740.0,0.89844188]
[1734152215516,0.13716898,101750.0,101740.0,0.89894188]
[1734152216424,0.13716898,101750.0,101740.0,0.89844188]
[1734152217324,0.13716898,101750.0,101740.0,0.89894188]
[1734152217926,0.13716898,101750.0,101740.0,0.84419117]
[1734152218119,0.14713065,101750.0,101740.0,0.89894188]
[1734152219426,0.14713065,101750.0,101740.0,0.89844188]
[1734152221020,0.14713065,101750.0,101740.0,0.95319259]
[1734152222426,0.14713065,101750.0,101740.0,0.89844188]
[1734152223521,0.14713065,101750.0,101740.0,1.25924188]
[1734152224726,0.14713065,101750.0,101740.0,0.89844188]
[1734152227333,0.26452478,101750.0,101740.0,0.89844188]
[1734152227726,0.26452478,101750.0,101740.0,0.84369117]
[1734152228233,0.26452478,101750.0,101740.0,0.89844188]
[1734152229529,0.68007549,101750.0,101740.0,0.549141]
[1734152229731,0.59204351,101750.0,101740.0,0.549141]
[1734152229928,0.73878617,101750.0,101740.0,0.549141]
[1734152230933,0.59204351,101750.0,101740.0,0.549141]
[1734152231133,0.73878617,101750.0,101740.0,0.549141]
[1734152231432,0.59204351,101750.0,101740.0,0.549141]
[1734152231923,0.73878617,101750.0,101740.0,0.549141]
[1734152232128,0.73878617,101750.0,101740.0,0.5]
[1734152237141,0.68403546,101750.0,101740.0,0.55475071]
[1734152237326,0.26445666,101750.0,101740.0,0.60389271]
[1734152237526,0.62525666,101750.0,101740.0,0.60389271]
[1734152237835,0.1764928,101750.0,101740.0,0.60389271]
[1734152238040,0.5372928,101750.0,101740.0,0.60389271]
[1734152238234,0.1764928,101750.0,101740.0,0.60389271]
[1734152238434,0.5372928,101750.0,101740.0,0.60389271]
[1734152238631,0.1764928,101750.0,101740.0,0.60389271]
[1734152238833,0.59204351,101750.0,101740.0,0.549142]
[1734152240242,0.59204351,101750.0,101740.0,0.5]
[1734152241641,0.59204351,101750.0,101740.0,0.549142]
[1734152244440,0.73878617,101750.0,101740.0,0.549142]
[1734152244840,0.59204351,101750.0,101740.0,0.549142]
[1734152246247,0.73878617,101750.0,101740.0,0.549142]
[1734152246749,0.68403546,101750.0,101740.0,0.549142]
[1734152247046,0.73878617,101750.0,101740.0,0.549142]
[1734152250053,0.37798617,101750.0,101740.0,0.549142]
[1734152250353,0.73878617,101750.0,101740.0,0.549142]
[1734152252453,0.73878617,101750.0,101740.0,0.84369217]
[1734152252659,0.37798617,101750.0,101740.0,0.84369217]
[1734152252863,0.73878617,101750.0,101740.0,0.84369217]
[1734152253063,0.73878617,101750.0,101740.0,0.79455017]
[1734152253362,0.62139204,101750.0,101740.0,0.5]
[1734152253664,0.62139204,101750.0,101740.0,0.79455017]
[1734152253961,0.20584133,101750.0,101740.0,0.89844288]
[1734152254258,0.53728992,101750.0,101740.0,0.84369217]
[1734152254465,0.17648992,101750.0,101740.0,0.84369217]
[1734152254763,0.32323258,101750.0,101740.0,0.84369217]
[1734152259168,0.68403258,101750.0,101740.0,0.84369217]
[1734152259761,0.32323258,101750.0,101740.0,0.84369217]
[1734152259966,0.32323258,101750.0,101740.0,1.19723001]
[1734152260661,0.32323258,101750.0,101740.0,0.84369217]
[1734152261055,0.32323258,101750.0,101740.0,1.19723001]
[1734152261259,0.32323258,101750.0,101740.0,0.84369217]
[1734152261668,0.32323258,101750.0,101740.0,1.19723001]
[1734152261862,0.32323258,101750.0,101740.0,0.84369217]
[1734152262665,0.32323258,101750.0,101740.0,1.19723001]
[1734152262868,0.68403258,101750.0,101740.0,0.84369217]
[1734152263960,0.32323258,101750.0,101740.0,0.84369217]
[1734152264166,0.68403258,101750.0,101740.0,0.84369217]
[1734152264561,0.32323258,101750.0,101740.0,0.84369217]
[1734152264766,0.68403258,101750.0,101740.0,0.84369217]
[1734152264969,0.56664133,101750.0,101740.0,0.84369217]
[1734152266273,0.74181184,101750.0,101740.0,0.79455017]
[1734152266468,0.79656255,101750.0,101740.0,0.79455017]
[1734152266857,0.62139204,101750.0,101740.0,0.79455017]
[1734152267063,0.79656255,101750.0,101740.0,0.79455017]
[1734152267373,0.62139204,101750.0,101740.0,0.79455017]
[1734152269173,0.62139204,101750.0,101740.0,0.5]
[1734152271168,0.62139204,101750.0,101740.0,0.79455017]
[1734152271868,0.63615204,101750.0,101740.0,0.5]
[1734152272265,0.62139204,101750.0,101740.0,0.5]
[1734152272466,0.62139204,101750.0,101740.0,0.79455017]
[1734152272775,0.62139204,101750.0,101740.0,0.5]
[1734152273067,0.62139204,101750.0,101740.0,0.79455017]
[1734152273465,0.62139204,101750.0,101740.0,0.5]
[1734152273865,0.62139204,101750.0,101740.0,0.84369217]
[1734152274071,0.62139204,101750.0,101740.0,0.549142]
[1734152274373,0.62139204,101750.0,101740.0,0.84369217]
[1734152274675,0.62139204,101750.0,101740.0,0.549142]
[1734152275265,0.62139204,101750.0,101740.0,0.84369217]
[1734152275767,0.62139204,101750.0,101740.0,0.549142]
[1734152281078,0.62139204,101750.0,101740.0,0.5]
[1734152281279,0.049142,101740.0,101730.0,0.84369517]
[1734152281479,0.16654461,101740.0,101730.0,0.84369517]
[1734152282078,0.30936225,101740.0,101730.0,1.19723301]
[1734152284970,0.30936225,101740.0,101730.0,0.84369517]
[1734152284971,0.22129532,101740.0,101730.0,0.84369517]
[1734152285175,0.22129532,101740.0,101730.0,1.19723301]
[1734152285176,0.30936436,101740.0,101730.0,1.19723301]
[1734152291797,0.30940075,101740.0,101730.0,1.19723301]
[1734152292079,0.30940075,101740.0,101730.0,1.61278372]
[1734152292080,0.25465004,101740.0,101730.0,1.61278372]
[1734152292271,0.25465004,101740.0,101730.0,1.22874468]
[1734152292475,0.30940075,101740.0,101730.0,1.46866598]
[1734152292675,0.30940075,101740.0,101730.0,1.22975485]
[1734152298087,0.30940075,101740.0,101730.0,1.4691014]
[1734152298585,0.30940075,101740.0,101730.0,1.46936097]
[1734152298969,0.30940075,101740.0,101730.0,1.22975485]
[1734152299169,0.30940075,101740.0,101730.0,1.46935068]
[1734152299585,0.30940075,101740.0,101730.0,1.22975485]
[1734152301588,0.30940075,101740.0,101730.0,1.4695161]
[1734152302487,0.22129532,101740.0,101730.0,1.4695161]
[1734152303182,0.22129532,101740.0,101730.0,1.22975485]
[1734152303775,0.22129532,101740.0,101730.0,0.87621701]
[1734152304581,0.22129532,101740.0,101730.0,1.19735485]
[1734152304776,0.46503798,101740.0,101730.0,1.3880299]
[1734152305083,0.049147,101730.0,101720.0,0.29525576]
[1734152305280,0.66636813,101730.0,101720.0,0.23569858]
[1734152305583,0.049152,101720.0,101710.0,1.06277059]
[1734152305775,0.78369029,101720.0,101710.0,1.06277059]
[1734152306377,0.72500282,101720.0,101710.0,1.06277059]
[1734152306584,0.72500282,101720.0,101710.0,1.06227059]
[1734152306788,0.72500282,101720.0,101710.0,0.76759858]
[1734152307482,0.72500282,101720.0,101710.0,0.76809858]
[1734152308376,0.72500282,101720.0,101710.0,0.73619858]
[1734152308579,0.82360282,101720.0,101710.0,0.73569858]
[1734152309388,0.82360282,101720.0,101710.0,0.5]
[1734152309585,0.82360282,101720.0,101710.0,0.5005]
[1734152309788,0.70616421,101720.0,101710.0,0.73619858]
[1734152310486,0.70616421,101720.0,101710.0,0.73569858]
[1734152310883,0.82360282,101720.0,101710.0,0.73569858]
[1734152311287,0.82360282,101720.0,101710.0,0.5]
[1734152311582,0.82360282,101720.0,101710.0,0.5005]
[1734152312292,0.70616421,101720.0,101710.0,0.5005]
[1734152312481,0.70616421,101720.0,101710.0,0.5]
[1734152313290,0.6514135,101720.0,101710.0,0.5]
[1734152313484,0.6514135,101720.0,101710.0,0.549656]
[1734152313678,0.66112849,101720.0,101710.0,0.549656]
[1734152313881,0.66112849,101720.0,101710.0,0.5005]
[1734152316284,0.30032849,101720.0,101710.0,0.5005]
[1734152316486,0.66112849,101720.0,101710.0,0.5005]
[1734152320495,0.66112849,101720.0,101710.0,0.5]
[1734152321991,0.66112849,101720.0,101710.0,0.549156]
[1734152326399,0.66112849,101720.0,101710.0,0.78485458]
[1734152326798,0.7158792,101720.0,101710.0,0.78485458]
[1734152327393,0.83331781,101720.0,101710.0,0.78485458]
[1734152329200,0.83331781,101720.0,101710.0,0.73569858]
[1734152329505,0.83324573,101720.0,101710.0,0.73569858]
[1734152330593,0.83324573,101720.0,101710.0,0.5]
[1734152331412,0.83324573,101720.0,101710.0,0.73569858]
[1734152332404,0.74529077,101720.0,101710.0,0.73569858]
[1734152332899,1.10861077,101720.0,101710.0,0.73569858]
[1734152333410,1.27016903,101720.0,101710.0,0.23569858]
[1734152333600,1.13797042,101720.0,101710.0,0.23569858]
[1734152333902,1.13797042,101720.0,101700.0,1.08002959]
[1734152333903,0.049156,101710.0,101700.0,1.08002959]
[1734152334100,0.67016794,101710.0,101700.0,1.08002959]
[1734152334299,0.67016794,101710.0,101700.0,1.19786885]
[1734152334300,0.72891139,101710.0,101700.0,1.19786885]
[1734152334503,0.72891139,101710.0,101700.0,0.84433101]
[1734152335402,0.72891139,101710.0,101700.0,1.080173]
[1734152335704,0.72891139,101710.0,101700.0,1.079673]
[1734152337003,0.72891139,101710.0,101700.0,1.030514]
[1734152339705,0.66633943,101710.0,101700.0,0.23584199]
[1734152342004,0.61158872,101710.0,101700.0,0.23584199]
[1734152345711,0.66633943,101710.0,101700.0,0.23584199]
[1734152347312,0.78370533,101710.0,101700.0,0.23584199]
[1734152348305,0.049161,101700.0,101690.0,1.063514]
[1734152348612,0.1919601,101700.0,101690.0,1.064014]
[1734152349605,0.1919601,101700.0,101690.0,1.063514]
[1734152349999,0.13720939,101700.0,101690.0,1.11268]
[1734152350205,0.61545504,101710.0,101690.0,1.64592656]
[1734152350505,0.61545504,101710.0,101700.0,0.69599233]
[1734152350698,0.49808914,101710.0,101700.0,0.64124162]
[1734152351007,0.55283985,101710.0,101700.0,0.64124162]
[1734152351211,0.55283985,101710.0,101700.0,1.14124162]
[1734152352020,0.49808914,101710.0,101700.0,1.14124162]
[1734152352212,0.55283985,101710.0,101700.0,1.14124162]
[1734152352718,0.19203985,101710.0,101700.0,1.14124449]
[1734152353015,0.19203985,101710.0,101700.0,0.90573301]
[1734152353207,0.19203985,101710.0,101700.0,1.26653301]
[1734152356315,0.19203985,101710.0,101700.0,1.62007085]
[1734152359118,0.13728914,101710.0,101700.0,1.62007085]
[1734152359316,0.19203985,101710.0,101700.0,1.62007085]
[1734152360118,0.13728914,101710.0,101700.0,1.62007085]
[1734152360417,0.19203985,101710.0,101700.0,1.62007085]
[1734152362015,0.19203985,101710.0,101700.0,1.20463301]
[1734152362207,0.67020575,101710.0,101700.0,0.84383301]
[1734152362607,0.67020575,101710.0,101700.0,1.07944509]
[1734152362918,0.58215736,101710.0,101700.0,0.78477308]
[1734152365427,0.58215736,101710.0,101700.0,1.07944509]
[1734152366216,0.58215736,101710.0,101700.0,0.78477308]
[1734152366410,0.58215736,101710.0,101700.0,1.07944509]
[1734152366811,0.67023983,101710.0,101700.0,1.07944509]
[1734152368619,0.67023934,101710.0,101700.0,1.07944509]
[1734152371512,0.58215736,101710.0,101700.0,1.07944509]
[1734152371918,0.72895562,101710.0,101700.0,0.78477308]
[1734152374015,0.74371562,101710.0,101700.0,0.78477308]
[1734152374219,0.72895562,101710.0,101700.0,0.78477308]
[1734152376025,0.61158972,101710.0,101700.0,0.78477308]
[1734152377016,0.62634972,101710.0,101700.0,0.78477308]
[1734152377525,0.61158972,101710.0,101700.0,0.78477308]
[1734152377718,0.62634972,101710.0,101700.0,0.78477308]
[1734152377912,0.7638961,101710.0,101700.0,0.78477308]
[1734152378117,0.7491361,101710.0,101700.0,0.78477308]
[1734152379322,0.64638768,101710.0,101700.0,0.78477308]
[1734152379718,0.63162768,101710.0,101700.0,0.78477308]
[1734152381824,0.63162768,101710.0,101700.0,0.73561208]
[1734152388026,0.68637839,101710.0,101700.0,0.73561208]
[1734152388321,0.8615489,101710.0,101700.0,0.23561208]
[1734152389323,0.049161,101700.0,101690.0,1.06378409]
[1734152389521,0.783868,101700.0,101690.0,1.06328409]
[1734152390327,0.783868,101700.0,101690.0,0.76861208]
[1734152391333,0.51946242,101700.0,101690.0,0.76861208]
[1734152391528,0.46471171,101700.0,101690.0,0.76861208]
[1734152391924,0.46471171,101700.0,101690.0,0.533]
[1734152392629,0.58222945,101700.0,101690.0,0.82767201]
[1734152394431,0.59185228,101700.0,101690.0,0.82767201]
[1734152395529,0.64660299,101700.0,101690.0,0.82767201]
[1734152396625,0.73476221,101700.0,101690.0,0.82767201]
[1734152397133,0.6800115,101700.0,101690.0,0.82767201]
[1734152398324,0.59185228,101700.0,101690.0,0.82767201]
[1734152398529,0.68001934,101700.0,101690.0,0.82767201]
[1734152399028,0.59185228,101700.0,101690.0,0.82767201]
[1734152399228,0.68002299,101700.0,101690.0,0.82767201]
[1734152399537,0.59185228,101700.0,101690.0,0.82767201]
[1734152401533,0.79349498,101700.0,101690.0,0.53046379]
[1734152401835,0.88827873,101700.0,101690.0,0.53046379]
[1734152402132,0.9459315,101700.0,101690.0,0.23579178]
[1734152402336,0.049166,101690.0,101680.0,1.03046379]
[1734152402541,0.58221846,101690.0,101680.0,0.79517201]
[1734152402733,0.52746775,101690.0,101680.0,0.79517201]
[1734152402931,0.58221846,101690.0,101680.0,0.79517201]
[1734152403133,0.58221846,101690.0,101680.0,1.25989372]
[1734152403134,0.16666775,101690.0,101680.0,1.25989372]
[1734152403432,0.16666775,101690.0,101680.0,1.20514301]
[1734152403433,0.25480181,101690.0,101680.0,1.20514301]
[1734152403648,0.13730006,101690.0,101680.0,1.59118085]
[1734152404036,0.19205077,101690.0,101680.0,1.59118085]
[1734152404234,0.67035252,101690.0,101680.0,0.87684301]
[1734152404535,0.22141846,101690.0,101680.0,0.87734301]
[1734152404737,0.30953298,101690.0,101680.0,0.87734301]
[1734152405734,0.30953298,101690.0,101680.0,1.23088085]
[1734152405735,0.19203123,101690.0,101680.0,1.23088085]
[1734152406040,0.10391671,101690.0,101680.0,1.54452754]
[1734152406226,0.08818572,101700.0,101690.0,0.049166]
[1734152406449,8.375e-05,101700.0,101690.0,1.12782623]